Workbook

Sheet Pellet Boiler Calculator
B7: Pellet boiler toolkit
B8: V2.2 May 2022
B9: Enter data in to yellow cells, results in green cells
B11: Pellet boilers for DHW systems | H11: Fuel comparison for DHW - carbon emissions & running costs
B12: Use this calculator for DHW loads. Depending on heating load these boilers may be able to deliver space heating as well | H12: Annual estimated fuel use | I12: =C16*365 -> 305581.3953 | J12: kWh/year
B13: Use DHW Demand Estimator worksheet for guidance on estimating DHW consumption for different building typologies | H13: Fuel | I13: CO2 emissions kgCO2e | J13: Reduction in CO2 emissions if replaced with pellets | K13: Estimated annual running cost
B14: Enter project specific data in yellow boxes | H14: Pellets | I14: =I12*'Data sources'!K4 -> 896.372093 | J14: =(I14/I14)-1 -> 0 | K14: =$I$12*'Data sources'!E23 -> 23967.16826
B15: Litres of DHW/day | C15: 15000 | D15: Normalise to 60°C | H15: Natural gas | I15: =I12*'Data sources'!K5 -> 59588.37209 | J15: =($I$14/I15)-1 -> -0.984957265 | K15: =$I$12*'Data sources'!E18 -> 33613.95349
B16: Energy required | C16: =C15*48/860 -> 837.2093023 | D16: kWh / day (48°C temperature rise from cold) | H16: LPG | I16: =I12*'Data sources'!K13 -> 67636.01242 | J16: =($I$14/I16)-1 -> -0.986747118 | K16: =$I$12*'Data sources'!E19 -> 54745.85259
B17: Average DHW demand period | C17: 12 | D17: hours | H17: Electricity | I17: =I12*'Data sources'!K7 -> 32697.2093 | J17: -0.9725856698 | K17: =$I$12*'Data sources'!E21 -> 64172.09302
B18: Average hourly DHW load | C18: =C16/C17 -> 69.76744186 | D18: kW | H18: Heat pump COP 3 + electricity | I18: =I12/3*'Data sources'!K7 -> 10899.06977 | J18: -0.9177570093 | K18: =(I12/3)*'Data sources'!E21 -> 21390.69767
B19: Peak DHW load | C19: 0.5 | D19: of total daily use | H19: Diesel | I19: =I12*'Data sources'!K6 -> 81284.65116 | J19: -0.9889724311 | K19: =$I$12*'Data sources'!E20 -> 61116.27907
B20: No. hours at peak DHW load | C20: 2 | D20: hours | H20: Coal | I20: =I12*'Data sources'!K8 -> 73721.51163 | J20: -0.9878411054 | K20: =$I$12*'Data sources'!E22 -> 13369.18605
B21: Peak hourly DHW load | C21: =(C15*C19)/C20 -> 3750 | D21: Litres | H21: For simple comparison all systems calculated at 100% efficiency except heat pumps at 300%.
B22: Indicative no. Pellematic boilers | C22: =ROUNDUP((C18/64),0) -> 2 | D22: OkoFEN PES64 boilers (additional boiler may be required for redundancy in critical service provision) | H22: Fuel carbon emission factors and average costs take from MfE and MBIE figures respectively - see Data Sources tab
B23: Estimated buffer storage required | C23: =IF(C21<1000,"1,000",IF(C21<2000,"2,000",IF(C21<3000,"3,000",IF(C21<4000,"4,000",IF(C21<5000,"5,000",IF(C21>=5000,"6,000")))))) -> 4,000 | D23: Litres stored to meet peak load requirements (may be inaccurate in large or very peaky DHW loads) | H23: Natural gas price is seldom seen in all but very largest commercial gas users - cost is likely to be higher in reality
B24: Peak output of boilers | C24: =ROUNDUP(C22,0)*64 -> 128 | D24: kW | H24: Heat pump running cost unlikely to be full cost as boosting electricity will be required
B25: Recovery time of buffer from cold | C25: =C26/C24 -> 2.289244186 | D25: hours
B26: Energy stored in buffer | C26: =C23*63/860 -> 293.0232558 | D26: kWh at 80°C
B28: Estimated fuel consumption & storage required for DHW | H28: Flexilo storage | I28: Tonnes stored | J28: Footprint | K28: Dimensions | L28: Flexilo | M28: Price inc vacuum hoses
B29: Average DHW energy per month | C29: =C16*(365/12) -> 25465.11628 | D29: kWh / month | H29: Small | I29: 4 | J29: 3.4 | K29: 1.84 x 1.84m | L29: KGT1818EU | M29: =6100+1600 -> 7700
B30: Tonnes of pellets required | C30: =(C29/0.93)/5100 -> 5.368989306 | D30: tonnes / month at 93% boiler efficiency, 5,100kWh / tonne fuel | H30: Medium | I30: 8 | J30: 6.8 | K30: 2.6 x 2.6m | L30: KGT2626EU | M30: =7400+1600 -> 9000
B31: Select storage room available | C31: Large | D31: Flexilo bagged pellet storage - can be larger as required | H31: Large | I31: 16 | J31: 13.6 | K31: 2 x (2.6 x 2.6m) | L31: 2 x KGT2626EU | M31: =14800+1600 -> 16400
B32: Pellet fuel store footprint | C32: =VLOOKUP(C31,Flexilo,3,FALSE) -> 13.6 | D32: m²
B33: Annual pellet fuel use | C33: =C30*12 -> 64.42787167 | D33: tonnes
B34: Amount of pellet fuel stored on site | C34: =VLOOKUP(C31,Flexilo,2,FALSE) -> 16 | D34: tonnes
B35: Approximate delivery frequency | C35: =C34/C30 -> 2.980076712 | D35: months between deliveries
B37: Pellet boiler system for DHW and indicative cost (not including flues, site variable depending on height)
B38: Proposed number of boilers | C38: =C22 -> 2 | D38: OkoFEN PES64 boilers
B39: Proposed number of DHW cylinders | C39: =IF(C23="1,000","1 x 1,000L",IF(C23="2,000","1 x 2,000L",IF(C23="3,000","2 x 1,500L",IF(C23="4,000","2 x 2,000L",IF(C23="5,000","3 x 2,000L",IF(C23="6,000","3 x 2,000L")))))) -> 2 x 2,000L | D39: Stainless steel for potable DHW, indoor case
B40: Proposed Flexilo pellet storage | C40: =C31 -> Large | D40: Flexilo
B41: Estimated cost of boilers | C41: =IF(C38=1, 44000, IF(C38>1,C38*38500))*1.1 -> 84700 | D41: Includes boiler, PWM primary pump/s, expansion vessel, controller
B42: Estimated cost of DHW cylinders | C42: =IF(C39="1 x 1,000L",10000,IF(C39="1 x 2,000L",20000,IF(C39="2 x 1,500L",13600,IF(C39="2 x 2,000L",40000,IF(C39="3 x 2,000L",60000,IF(C39="3 x 2,000L",60000))))))*1.1 -> 44000 | D42: Cylinder
B43: Estimated cost of pellet storage | C43: =VLOOKUP(C40,Flexilo,6,FALSE)*1.1 -> 18040 | D43: Includes vacuum fuel delivery system
B44: Estimated total system cost | C44: =SUM(C41:C43) -> 146740 | D44: exc GST, freight, flues, HX if required, installation materials, labour
B46: Indicative area required for boilers, buffers & fuel storage - not including clearances
B47: Proposed number of boilers | C47: =C22 -> 2 | D47: OkoFEN PES64 boilers
B48: Floor area for boilers | C48: =IF(C47=1,"3.6", IF(C47>1,C47*3.6)) -> 7.2 | D48: m²
B49: Floor area for buffers | C49: =IF(C23="1,000",1,C23*0.0013) -> 5.2 | D49: m²
B50: Floor area for pellet storage | C50: =C32 -> 13.6 | D50: m²
B51: Total floor area (indicative) | C51: =SUM(C48:C50) -> 26 | D51: m²
B54: Basic Space Heating System Calculator
B55: Does not consider potential to reduce boiler numbers with buffers
B56: Enter project specific data in yellow boxes
B57: Area of building to heat | C57: 1000 | D57: m²
B58: Indicative heat load | C58: =C57*E58/1000 -> 70 | D58: kW | E58: 70 | F58: 70W/m2 standard heat load figure for calculation - adjust if necessary
B59: Enter heat load if known | D59: kW
B60: Calculated heat load | C60: =MAX(C58:C59) -> 70 | D60: kW
B61: Indicative no. Pellematic boilers | C61: =ROUNDUP(C60/64,0) -> 2 | D61: OkoFEN PES64 boilers
B62: Peak output of boilers | C62: =IF(C61<1.9,"64",ROUNDUP(C61*64,0)) -> 128 | D62: kW
B63: Notes:
B64: Depending on hours of heat load, buffers can be used to reduce number of boilers for peak load
B65: Depending on hours of space heating load boilers indicated above may be able to deliver DHW or other loads, i.e. swimming pools, hot tubs, etc
B66: Pellet consumption and storage required will vary depending on building insulation levels, location and temperature set points (degree days). This cannot be calculated using this toolkit
B67: Annual fuel consumption, running cost and carbon emissions for space heating systems require more detailed calculation of seasonal heat loads. Contact Apricus for assistance with this calculation.
B69: Pellet boiler system for space heating and indicative cost
B70: Proposed number of boilers | C70: =C61 -> 2 | D70: OkoFEN PES64 boilers
B71: Proposed number of buffers | C71: n/a | D71: Contact Apricus for designs
B72: Proposed Flexilo pellet storage | C72: n/a | D72: Contact Apricus for designs
B73: Estimated total system cost | C73: =IF(C70=1,"$44,000", IF(C70>1,C70*39000))*1.1 -> 85800 | D73: exc GST, pellet storage, buffer if required, freight, flues, HX if required, installation materials, labour
B76: Replacement system - current fuel comparison calculator
B77: Current fuel use | C77: Enter ONE fuel use in litres, kg or tonnes | D77: Calculated or enter kWh in yellow | E77: CO2 emissions kgCO2e
B78: Natural gas kWh | D78: 0 | E78: =D78*'Data sources'!K5 -> 0
B79: Diesel litre | C79: 10000 | D79: =C79*'Data sources'!G6 -> 100000 | E79: =D79*'Data sources'!K6 -> 26600
B80: Electricity kWh | D80: 0 | E80: =D80*'Data sources'!K7 -> 0
B81: LPG kg | C81: 0 | D81: =C81*('Data sources'!G10/45) -> 0 | E81: =D81*'Data sources'!K10 -> 0
B82: Coal tonnes | C82: 0 | D82: =C82*'Data sources'!G8*1000 -> 0 | E82: =D82*'Data sources'!K8 -> 0
C83: Annual max | D83: =MAX(D78:D82) -> 100000 | E83: =MAX(E78:E82) -> 26600
D84: kWh | E84: kg CO2e
B85: Choose from list of boiler use: | D85: =IF(C86="heating season only",6,12) -> 6 | E85: months fuel use
B86: Heating season only | C86: Heating season only
B87: All year - DHW
C88: Indicative tonnes of pellets per year | D88: CO2 emissions with pellets | E88: CO2 emission savings | F88: Estimated volume required for pellet storage assuming deliveries every 2 months m³ | G88: Total fuel volume /year m³ | H88: Estimated annual cost of pellet fuel | I88: Minimum economic delivery is generally 5 tonnes. NB delivery frequency & stored volume can be modified to suit site needs.
B89: Pellet fuel | C89: =D83/5100 -> 19.60784314 | D89: =D83*'Data sources'!K4 -> 293.3333333 | E89: =(D89/E83)-1 -> -0.9889724311 | F89: =G89/(IF(C85=6,3,6)) -> 5.027652086 | G89: =C89/0.65 -> 30.16591252 | H89: =C89*5100*'Data sources'!E23 -> 7843.137255

Sheet Servicing Calculator
B5: OkoFEN pellet boiler maintenance & service guidance
B6: Cost per each single OkoFEN boiler
B7: Does not include any labour or materials for servicing any other components of the system, e.g. corrosion inhibitor
B8: travel, management oversight, heating system servicing and any consumables are not included
B10: NOTE - servicing required after 40 tonnes pellets or 3,000 hours, whichever sooner
B11: Number of OkoFEN boilers at site | C11: 1
B12: Total tonnes of pellets for site / yr | C12: 50 | D12: =(C12/C11)/40 -> 1.25 | E12: Boiler annual servicing factor
B13: Number of services / boiler / yr | C13: =IF(D12<1,"1",D12) -> 1.25
B15: Hours per boiler (4 hours suggested) | C15: Hourly rate | D15: Labour cost per boiler
B16: 4 | C16: 85 | D16: =C16*B16 -> 340 | E16: Modify any figures in yellow to change total costs
B18: STANDARD SITES - DHW NOT CRITICAL SERVICE | J18: All replaceable parts covered under warranty for first 2 years
B19: Years | C19: Expected Visits | D19: Labour | E19: Parts | F19: Total per boiler | G19: Total for site | H19: Total for site over period | I19: 5 year maintenance costs estimated
B20: 1-2 | C20: 1 | D20: =D16*C20 -> 340 | E20: =D38 -> 0 | F20: =(D20+E20)*C13 -> 425 | G20: =F20*$C$11 -> 425 | H20: =G20*2 -> 850 | J20: Years
B21: 3-5 | C21: 1.5 | D21: =C21*D$16 -> 510 | E21: =D39 -> 0 | F21: =(D21+E21)*C13 -> 637.5 | G21: =F21*$C$11 -> 637.5 | H21: =G21*3 -> 1912.5 | I21: =(G20*2)+(G21*3) -> 2762.5 | J21: 1 to 5
B22: 5-10 | C22: 2 | D22: =C22*D$16 -> 680 | E22: =E39 -> 1019.434 | F22: =(D22+E22)*C13 -> 2124.2925 | G22: =F22*$C$11 -> 2124.2925 | H22: =G22*5 -> 10621.4625 | I22: =G22*5 -> 10621.4625 | J22: 5 to 10
B23: 10-15 | C23: 2.5 | D23: =C23*D$16 -> 850 | E23: =F39 -> 1423.058 | F23: =(D23+E23)*C13 -> 2841.3225 | G23: =F23*$C$11 -> 2841.3225 | H23: =G23*5 -> 14206.6125 | I23: =G23*5 -> 14206.6125 | J23: 10 to 15
G24: Average annual maintenance costs for site over 15 years | H24: =SUM(H20:H23)/15 -> 1839.371667
G25: Per boiler over 15 years | H25: =H24/C11 -> 1839.371667
B27: SITES WITH DHW AS CRITICAL SERVICE - ONLY SERVICE 1 BOILER PER VISIT | F27: 2 | G27: additional time for repeat visits, i.e. not all boilers can be serviced on same day for redundancy reasons
B28: Years | C28: Expected Visits | D28: Labour | E28: Parts | F28: Total per boiler | G28: Total for site | H28: Total for site over period | I28: 5 year maintenance costs estimated
B29: 1-2 | C29: =C20*F27 -> 2 | D29: =(C29*D16) -> 680 | E29: =D38 -> 0 | F29: =(D29+E29)*C13 -> 850 | G29: =F29*C11 -> 850 | H29: =G29*2 -> 1700 | J29: Years
B30: 3-5 | C30: =C21*F27 -> 3 | D30: =(C30*D16) -> 1020 | E30: =D39 -> 0 | F30: =(D30+E30)*C13 -> 1275 | G30: =F30*C11 -> 1275 | H30: =G30*3 -> 3825 | I30: =(G29*2)+(G30*3) -> 5525 | J30: 1 to 5 | K30: =I21/I30 -> 0.5
B31: 5-10 | C31: =C22*F27 -> 4 | D31: =(C31*D16) -> 1360 | E31: =E39 -> 1019.434 | F31: =(D31+E31)*C13 -> 2974.2925 | G31: =F31*C11 -> 2974.2925 | H31: =G31*5 -> 14871.4625 | I31: =G31*5 -> 14871.4625 | J31: 5 to 10
B32: 10-15 | C32: =C23*F27 -> 5 | D32: =(C32*D16) -> 1700 | E32: =F39 -> 1423.058 | F32: =(D32+E32)*C13 -> 3903.8225 | G32: =F32*C11 -> 3903.8225 | H32: =G32*5 -> 19519.1125 | I32: =G32*5 -> 19519.1125 | J32: 10 to 15
G33: Average annual maintenance costs for site over 15 years | H33: =SUM(H29:H32)/15 -> 2661.038333
G34: Per boiler over 15 years | H34: =H33/C11 -> 2661.038333
B36: Conservative figures for replacement parts and costs per boiler over years 3 to 15, see workings in table below | G36: All parts in years 1 to 2 are covered under warranty
C37: Years | D37: 3-5 | E37: 5-10 | F37: 10-15
C38: Total average parts cost | D38: =SUM(H43:H63) -> 0 | E38: =SUM(I43:I63) -> 5097.17 | F38: =SUM(J43:J63) -> 7115.29
C39: Average cost per year | D39: =+D38/3 -> 0 | E39: =+E38/5 -> 1019.434 | F39: =+F38/5 -> 1423.058
E41: Conservative quantity of parts over years | H41: Average cost over years
B42: Spare parts | C42: Part Number | D42: Cost | E42: 3-5 | F42: 5-10 | G42: 10-15 | H42: 3-5 | I42: 5-10 | J42: 10-15 | K42: Conservative number of replacements over period
B43: Controller CP021 | C43: E1411 | D43: 2085.2 | E43: 0 | F43: 0.3 | G43: 0.5 | H43: =+E43*$D43 -> 0 | I43: 625.56 | J43: 1042.6 | K43: =+E43+F43+G43 -> 0.8
B44: Touch display | C44: E1330 | D44: 1410.5 | E44: 0 | F44: 0.3 | G44: 0.5 | H44: 0 | I44: 423.15 | J44: 705.25 | K44: 0.8
B45: Negative pressure sensor | C45: 24155 | D45: 148.2 | E45: 0 | F45: 0.4 | G45: 0.6 | H45: 0 | I45: 59.28 | J45: 88.92 | K45: 1
B46: Chamber sensor set | C46: PE277S | D46: 289.9 | E46: 0 | F46: 1 | G46: 1 | H46: 0 | I46: 289.9 | J46: 289.9 | K46: 2
B47: Boiler sensor | C47: E1049 | D47: 46.8 | E47: 0 | F47: 0.3 | G47: 0.4 | H47: 0 | I47: 14.04 | J47: 18.72 | K47: 0.7
B48: Boiler temperature limiter STB | C48: E1073 | D48: 88.4 | E48: 0 | F48: 0.3 | G48: 0.4 | H48: 0 | I48: 26.52 | J48: 35.36 | K48: 0.7
B49: Main switch | C49: E1653 | D49: 88.4 | E49: 0 | F49: 0.3 | G49: 0.4 | H49: 0 | I49: 26.52 | J49: 35.36 | K49: 0.7
B50: Ignition element | C50: E1004 | D50: 183.3 | E50: 0 | F50: 0.6 | G50: 0.9 | H50: 0 | I50: 109.98 | J50: 164.97 | K50: 1.5
B51: Burner motor | C51: E1306 | D51: 743.6 | E51: 0 | F51: 0.3 | G51: 0.4 | H51: 0 | I51: 223.08 | J51: 297.44 | K51: 0.7
B52: Cleaning motor | C52: E1204E | D52: 245.7 | E52: 0 | F52: 0.4 | G52: 0.6 | H52: 0 | I52: 98.28 | J52: 147.42 | K52: 1
B53: Belimo valve | C53: E1413E | D53: 1028.3 | E53: 0 | F53: 0.4 | G53: 0.6 | H53: 0 | I53: 411.32 | J53: 616.98 | K53: 1
B54: Burner fan | C54: E1005P | D54: 510.9 | E54: 0 | F54: 0.3 | G54: 0.4 | H54: 0 | I54: 153.27 | J54: 204.36 | K54: 0.7
B55: Exhaust extractor | C55: E1249P | D55: 995.8 | E55: 0 | F55: 0.4 | G55: 0.6 | H55: 0 | I55: 398.32 | J55: 597.48 | K55: 1
B56: Burner plate | C56: B213 | D56: 492.7 | E56: 0 | F56: 0.6 | G56: 0.8 | H56: 0 | I56: 295.62 | J56: 394.16 | K56: 1.4
B57: Cumbustion pipe | C57: B174 | D57: 670.8 | E57: 0 | F57: 1.3 | G57: 1.6 | H57: 0 | I57: 872.04 | J57: 1073.28 | K57: 2.9
B58: Ash screw hardened | C58: PE462-1 | D58: 393.9 | E58: 0 | F58: 0.4 | G58: 0.5 | H58: 0 | I58: 157.56 | J58: 196.95 | K58: 0.9
B59: Burner cleaning motor | C59: E1640 | D59: 789.1 | E59: 0 | F59: 0.3 | G59: 0.4 | H59: 0 | I59: 236.73 | J59: 315.64 | K59: 0.7
B60: Suction turbine | C60: E1205P | D60: 640.9 | E60: 0 | F60: 0.3 | G60: 0.4 | H60: 0 | I60: 192.27 | J60: 256.36 | K60: 0.7
B61: Silo motor | C61: K130 | D61: 1179.1 | E61: 0 | F61: 0.3 | G61: 0.4 | H61: 0 | I61: 353.73 | J61: 471.64 | K61: 0.7
B62: Others | D62: 325 | E62: 0 | F62: 0.4 | G62: 0.5 | H62: 0 | I62: 130 | J62: 162.5 | K62: 0.9
E63: Warranty cover

Sheet DHW Demand Estimator
B3: Domestic Hot Water Daily Demand Estimator
B4: Use this sheet to estimate daily domestic hot water demand
B6: Step One | C6: Choose buidling location | D6: Choose Building Location | E6: =IF(D6="Auckland - NZ", "Default location"," ") -> 
B7: Step Two | C7: Click button below for prefered calculation methodology for DHW demand estimation
B10: Step Three | C10: Proceed to chosen estimation tool below | G10: Compare esimatation methods for DHW demand summary L/day at 60°C
G11: Green Star | H11: =D62 -> 0
G12: Energy Use | H12: =D78 -> 0
G13: ASHRAE Total | H13: =D47 -> 21820
C14: Estimated DHW demand | D14: =IF(D15="Energy Use",H12,IF(D15="NZ GBC",H11,IF(D15="ASHRAE",H13,0))) -> 0 | E14: L/Day | G14: ASHRAE Type 1 | H14: =D27 -> 14020 | I14: =IF(H14=0,"Not selected","Selected") -> Selected
C15: Estimation method selected | D15: Energy Use | G15: ASHRAE Type 2 | H15: =D36 -> 7800 | I15: =IF(H15=0,"Not selected","Selected") -> Selected
G16: ASHRAE Type 3 | H16: =D45 -> 0 | I16: =IF(H16=0,"Not selected","Selected") -> Not selected
B21: ASHRAE DHW Estimator by Building Type / Application
B22: Choose building type and entire data for up to 3 building types / applications below | F22: Notes on ASHRAE domestic hot water data
B24: 1 | C24: Building Type / Application | D24: Apartment (76-100 Units) | E24: =IF(ISNUMBER(SEARCH("Hotel",D24))," confirm # units",IF(ISNUMBER(SEARCH("Apartment",D24))," confirm # units",IF(ISNUMBER(SEARCH("Office",D24))," adjust occupancy",""))) -> confirm # units | F24: =UPPER(D24&":")&(VLOOKUP(D24,$C$101:$L$124,8,FALSE)) -> APARTMENT (76-100 UNITS): Hot water requirements for both garden-type and high-rise apartments for 1 and 2 bath apartments, for showers, lavatories, kitchen, dishwasher, clothes washers, and general cleaning. These data apply to central water heating systems only.
C25: =(VLOOKUP(D24,$C$101:$I$124,2,FALSE)) -> Number of Units | D25: 100 | E25: =(VLOOKUP(D24,$C$101:$I$124,7,FALSE)) -> units
C26: Hot Water Usage Pattern | D26: Average
C27: Estimated Demand | D27: =IF(D26="Average",VLOOKUP(D24,$C$101:$N$125,3,FALSE)*D25,IF(D26="High",VLOOKUP(D24,$C$101:$N$125,4,FALSE)*D25)) -> 14020 | E27: L/Day
C30: Add second building type / application? | D30: Yes
B33: 2 | C33: Building Type / Application | D33: Restaurant (Quick Service) | E33: =IF(ISNUMBER(SEARCH("Hotel",D33))," confirm # units",IF(ISNUMBER(SEARCH("Apartment",D33))," confirm # units",IF(ISNUMBER(SEARCH("Office",D33))," adjust occupancy",""))) ->  | F33: =UPPER(D33&":")&(VLOOKUP(D33,$C$101:$L$124,8,FALSE)) -> RESTAURANT (QUICK SERVICE): Hot water requirements are primarily for dish washing. Other uses include food preparation, cleaning of utensils and floors, and hand washing for employees and customers. Recommendations are for serving food at tables, counters, booths, and parked cars. Establishments that use disposable service exclusively are not covered.
C34: =(VLOOKUP(D33,$C$101:$I$124,2,FALSE)) -> Number of Meals per Day | D34: 3000 | E34: =(VLOOKUP(D33,$C$101:$I$124,7,FALSE)) -> meals
C35: Hot Water Usage Pattern | D35: Average
C36: Estimated Demand | D36: =IF(D35="Average",VLOOKUP(D33,$C$101:$N$125,3,FALSE)*D34,IF(D35="High",VLOOKUP(D33,$C$101:$N$125,4,FALSE)*D34)) -> 7800 | E36: L/Day
C39: Add third building type / application? | D39: Yes
B42: 3 | C42: Building Type / Application | D42: Select a building or application | E42: =IF(ISNUMBER(SEARCH("Hotel",D42))," confirm # units",IF(ISNUMBER(SEARCH("Apartment",D42))," confirm # units",IF(ISNUMBER(SEARCH("Office",D42))," adjust occupancy",""))) ->  | F42: =UPPER(D42&":")&(VLOOKUP(D42,$C$101:$L$124,8,FALSE)) -> SELECT A BUILDING OR APPLICATION:
C43: =(VLOOKUP(D42,$C$101:$I$124,2,FALSE)) -> Unit | E43: =(VLOOKUP(D42,$C$101:$I$124,7,FALSE)) -> 
C44: Hot Water Usage Pattern | D44: Average
C45: Estimated Demand | D45: =IF(D44="Average",VLOOKUP(D42,$C$101:$N$125,3,FALSE)*D43,IF(D44="High",VLOOKUP(D42,$C$101:$N$125,4,FALSE)*D43)) -> 0 | E45: L/Day
C47: Estimated Daily Demand | D47: =D27+D36+D45 -> 21820 | E47: L/day at 60°C | F47: NB: Check that total is correct for number of hot water applications selected
B52: DHW Estimator for OFFICES, EDUCATION & INDUSTRIAL BUILDINGS ONLY from NZGBC GreenStar V3.2
B53: Enter office occupancy and select hours of operation and water efficiency | F53: Notes on NZGBC method, data from GreenStar V3.2, Appendix I: WAT-1 Water Calculator Guide
C54: Occupants
C55: Hours of operation | D55: 10 hrs/day, 5 days/wk | F55: ="Occupancy multiplier of "&TEXT(VLOOKUP(D55,G161:H165,2,FALSE),"#0.0") -> Occupancy multiplier of 1.0
C56: Shower usage | D56: Showers & 2 TRAvel points | F56: =IFERROR("Shower usage rate of "&TEXT(VLOOKUP(D56,G166:H170,2,FALSE),"#0%"),"") -> Shower usage rate of 15%
C57: Water efficiency rating | D57: WELS 4* | F57: WELS rating is for fixture total water consumption. This is adjusted below to show hot portion only.
C58: Shower consumption | D58: =VLOOKUP($D$57,$J$162:$L$168,2,FALSE)*$E$163 -> 5.6 | E58: L/min at 60°C | F58: =TEXT(VLOOKUP($D$57,$J$162:$L$168,2,FALSE),"#0.0")&" L/min shower fittings" -> 9.0 L/min shower fittings
C59: Shower DHW demand | D59: =D58*$D$54*VLOOKUP($D$55,$G$161:$H$165,2,FALSE)*VLOOKUP($D$56,$G$166:$H$170,2,FALSE)*$K$169 -> 0 | E59: L/day at 60°C | I59: ="HOT="&TEXT(D163,0)&"°C"&", USE="&TEXT(D164,0)&"°C"&", COLD="&TEXT(D165,"#0.0")&"°C" -> HOT=60°C, USE=43°C, COLD=15.0°C
C60: Wash Hand Basin consumption | D60: =VLOOKUP($D$57,$J$162:$L$168,3,FALSE)*$E$163 -> 4.666666667 | E60: L/min at 60°C | F60: =TEXT(VLOOKUP($D$57,$J$162:$L$168,3,FALSE),"#0.0")&" L/min WHB fittings" -> 7.5 L/min WHB fittings | I60: ="Therefore HOT %="&TEXT(E163,"#0%") -> Therefore HOT %=62%
C61: Wash Hand Basin DHW demand | D61: =$D$60*$L$169*$L$170*$D$54*VLOOKUP($D$55,$G$161:$H$165,2,FALSE) -> 0 | E61: L/day at 60°C
C62: Estimated Daily Demand | D62: =D59+D61 -> 0 | E62: L/day at 60°C
B67: Metered Energy Use DHW Estimator
B68: Enter annual MWh use for water heating | F68: Notes on energy use method
C70: MWh used per year | E70: MWh/Year | F70: Use this method if the MWh of consumption for water heating from electricity or gas is known. LPG 1MJ = 0.0139 MWh/kg NATURAL GAS 0.0002778 MWh/MJ Suggested efficiency of the 'heating type' is based on the typical equipment COP/efficiency used in these applications. This value can be altered by entering a % value for the 'known heater efficiency'. This method assumes the same set temperature difference between the target temperature and average cold inlet temperature.
C71: Heating Type | D71: Gas/Oil Heater
C72: Suggested Heater Efficiency | D72: =VLOOKUP(D71,$F$180:$G$184,2,FALSE) -> 0.8
C73: Known Heater Efficiency | D73: 0
C74: System Heat Loss | D74: 0.05
C75: Days usage per year | D75: 365 | E75: Days
C76: Estimated Annual Demand | D76: =IF(D73=0,D72*(1-D74)*(D70*859.8*1000)/(D163-D165),D73*(1-D74)*(D70*859.8*1000)/(D163-D165)) -> 0 | E76: L/Year
C78: Estimated Daily Demand | D78: =D76/D75 -> 0 | E78: L/day at 60°C
C97: Data Sources
C99: Service Water Heating by ASHRAE 2003 | E99: ="at 60°C ("&(TEXT(D163-D165,0))&"ºC temperature rise)" -> at 60°C (45ºC temperature rise)
C100: Type Of Building | D100: Unit Type | E100: Average consumption (L/day/unit) | F100: Maximum consumption (L/unit/day) | G100: Average Energy Use (kWh/unit/day) | H100: Maximum Energy Use (kWh/unit/day)
C101: Select a building or application | D101: Unit | I101: ="" ->  | J101: ="" -> 
C102: Apartment (<20 Units) | D102: Number of Units | E102: 159.2 | F102: 303.2 | G102: =E102*($D$163-$D$165)*4.184/3600 -> 8.32616 | H102: 15.85736 | I102: units | J102: Hot water requirements for both garden-type and high-rise apartments for 1 and 2 bath apartments, for showers, lavatories, kitchen, dishwasher, clothes washers, and general cleaning. These data apply to central water heating systems only.
C103: Apartment (21-50 Units) | D103: Number of Units | E103: 151.6 | F103: 276.7 | G103: 7.92868 | H103: 14.47141 | I103: units | J103: Hot water requirements for both garden-type and high-rise apartments for 1 and 2 bath apartments, for showers, lavatories, kitchen, dishwasher, clothes washers, and general cleaning. These data apply to central water heating systems only.
C104: Apartment (51-75 Units) | D104: Number of Units | E104: 144 | F104: 250 | G104: 7.5312 | H104: 13.075 | I104: units | J104: Hot water requirements for both garden-type and high-rise apartments for 1 and 2 bath apartments, for showers, lavatories, kitchen, dishwasher, clothes washers, and general cleaning. These data apply to central water heating systems only.
C105: Apartment (76-100 Units) | D105: Number of Units | E105: 140.2 | F105: 227.4 | G105: 7.33246 | H105: 11.89302 | I105: units | J105: Hot water requirements for both garden-type and high-rise apartments for 1 and 2 bath apartments, for showers, lavatories, kitchen, dishwasher, clothes washers, and general cleaning. These data apply to central water heating systems only.
C106: Apartment (100+ Units) | D106: Number of Units | E106: 132.7 | F106: 195 | G106: 6.94021 | H106: 10.1985 | I106: units | J106: Hot water requirements for both garden-type and high-rise apartments for 1 and 2 bath apartments, for showers, lavatories, kitchen, dishwasher, clothes washers, and general cleaning. These data apply to central water heating systems only.
C107: High School | D107: Number of Students | E107: 6.8 | F107: 13.6 | G107: 0.35564 | H107: 0.71128 | I107: students | J107: High schools require hot water for showers, lavatories, dishwashers, kitchens, and general cleaning. High schools without showers follow the recommendations for primary schools.
C108: Hotel/Motel (<20 units) | D108: Number of Units | E108: 75.8 | F108: 132.6 | G108: 3.96434 | H108: 6.93498 | I108: units | J108: Domestic hot water requirements are for tubs and showers, lavatories, and general cleaning purposes. Food service, laundry, and swimming pool requirements are not included.
C109: Hotel/Motel (20-100 units) | D109: Number of Units | E109: 53.1 | F109: 94.8 | G109: 2.77713 | H109: 4.95804 | I109: units | J109: Domestic hot water requirements are for tubs and showers, lavatories, and general cleaning purposes. Food service, laundry, and swimming pool requirements are not included.
C110: Hotel/Motel (100+ units) | D110: Number of Units | E110: 37.9 | F110: 56.8 | G110: 1.98217 | H110: 2.97064 | I110: units | J110: Domestic hot water requirements are for tubs and showers, lavatories, and general cleaning purposes. Food service, laundry, and swimming pool requirements are not included.
C111: Military barracks | D111: Number of Soldiers | E111: 114 | F111: =E111*1.5 -> 171 | G111: 5.9622 | H111: 8.9433 | I111: soldiers | J111: The estimated DHW needs for a barracks building is 30 gal (114 L) of hot water per soldier per day at a temperature of 140 °F (60 °C). Most soldiers take two showers per day and one of them is in the morning, from 7:30 am to 8:00 am.
C112: Military mess hall | D112: Number of Meals Per Day | E112: 9 | F112: 18 | G112: 0.4707 | H112: 0.9414 | I112: meals | J112: Three meals are served per day - breakfast (7:30 to 9:00 am), lunch (11:00 am to 1:00 pm) and supper (5:00 pm to 6:30 pm). The hot water use of this facility is per meal served.
C113: Nursing Home | D113: Number of Beds | E113: 69.7 | F113: 114 | G113: 3.64531 | H113: 5.9622 | I113: beds | J113: Hot water is required for tubs and showers, wash basins, service sinks, kitchen equipment, and general cleaning. These figures include hot water for kitchen use. When other equipment, such as that for heavy laundry and hydrotherapy purposes, is to be used, its hot water requirement should be added.
C114: Office Building | D114: Number of People | E114: 3.8 | F114: 7.6 | G114: 0.19874 | H114: 0.39748 | I114: people | J114: Hot water requirements are primarily for cleaning and lavatory use by occupants and visitors. Hot water use for food service or shower facilities in office buildings is not included (add showers separately). Adjust occupancy by 1.4 = (7 days/wk), 2 = (24hrs/day, 5 days/wk), 2.8 = (24hrs/day, 7 days/wk)
C115: Primary School | D115: Number of Students | E115: 2.3 | F115: 5.7 | G115: 0.12029 | H115: 0.29811 | I115: students | J115: Hot water requirements are for lavatories, cafeteria and kitchen use, and general cleaning purposes. When showers are used, their additional hot water requirements should be added.
C116: Restaurant (Quick Service) | D116: Number of Meals per Day | E116: 2.6 | F116: 22.7 | G116: 0.13598 | H116: 1.18721 | I116: meals | J116: Hot water requirements are primarily for dish washing. Other uses include food preparation, cleaning of utensils and floors, and hand washing for employees and customers. Recommendations are for serving food at tables, counters, booths, and parked cars. Establishments that use disposable service exclusively are not covered.
C117: Resturant (Full Meal) | D117: Number of Meals per Day | E117: 9.1 | F117: 41.7 | G117: 0.47593 | H117: 2.18091 | I117: meals | J117: Hot water requirements are primarily for dish washing. Other uses include food preparation, cleaning of utensils and floors, and hand washing for employees and customers. Recommendations are for serving food at tables, counters, booths, and parked cars. Establishments that use disposable service exclusively are not covered.
C118: Shower only | D118: Number of Showers Per Day | E118: =114/60*5 -> 9.5 | F118: =E118*2 -> 19 | G118: 0.49685 | H118: 0.9937 | I118: showers | J118: Assumes an average shower length is 5 minutes, with average consumption of 9L/min, and high usage of 16L/min. For offices with showering for gym or cycling facilities assume 5-15% occupant usage to determine number of showers per day (e.g. number of office staff x 0.05)
C119: Student Housing | D119: Number of Students | E119: 49.7 | F119: 100 | G119: 2.59931 | H119: 5.23 | I119: students | J119: Hot water requirements for college dormitories generally include showers, lavatories, ervice sinks, and clothes washers. The figures do not include hot water used for food service.
O124: Plumbing Engineering Design Handbook, Volume 2 © 2014, American Society of Plumbing Engineers.
C125: Service Water Heating by ASHRAE 2003
C161: NZGBC GreenStar V3.2 Appendix I: WAT-1 Water Calculator Guide | G161: Hours of occupancy multiplier | H161: 0 | J161: Water efficiency ratings | K161: Shower L/min | L161: WHB L/min
E162: Water ratio | G162: 10 hrs/day, 5 days/wk | H162: 1 | J162: WELS 0* | K162: 18 | L162: 18
C163: Hot | D163: 60 | E163: =(D164-D165)/(D163-D165) -> 0.6222222222 | G163: 10 hrs/day, 7 days/wk | H163: 1.4 | J163: WELS 1* | K163: 16 | L163: 16
C164: Use | D164: 43 | G164: 24 hrs/day, 5 days/wk | H164: 2 | J164: WELS 2* | K164: 12 | L164: 12
C165: Cold | D165: 15 | E165: =(D163-D164)/(D163-D165) -> 0.3777777778 | G165: 24 hrs/day, 7 days/wk | H165: 2.8 | J165: WELS 3* | K165: 9 | L165: 9
G166: Shower use % | H166: ="" ->  | J166: WELS 4* | K166: 9 | L166: 7.5
G167: No showers | H167: 0 | J167: WELS 5* | K167: 9 | L167: 6
G168: Showers (low use) | H168: 0.05 | J168: WELS 6* | K168: 9 | L168: 4.5
G169: Showers & 1 TRAvel point or gym | H169: 0.1 | J169: Usage Time (mins) | K169: 5 | L169: 0.17
G170: Showers & 2 TRAvel points | H170: 0.15 | J170: Usage per day per occupant | L170: 2.5
C172: Average demand | D172: at 49C | E172: at 60C
C173: Medium | D173: 113.6 | E173: =D173/0.77 -> 147.5324675
C174: High | D174: 205 | E174: 266.2337662
C175: Max demand | D175: at 49C | E175: at 60C
C176: Medium | D176: 185 | E176: =D176/0.77 -> 240.2597403
C177: High | D177: 340 | E177: 441.5584416
F180: Select Heating Type | G180: 0
C181: Select estimation method | F181: Gas/Oil Heater | G181: 0.8 | H181: Average
C182: Energy Use | F182: Electrical Element | G182: 1 | H182: High
C183: Green Star | F183: Heat Pump | G183: 3.5
C184: ASHRAE | F184: Modern Pellet Boiler | G184: 0.85 | H184: No
C185: All | H185: Yes

Sheet Data sources
B2: Fuel conversions - MfE Measuring Emissions 2022 summary of emissions factors, using data from 2020
D3: kg | E3: Litres | F3: MJ | G3: kWh / unit | H3: m³ | I3: kWh/kg | J3: CO2e/unit | K3: CO2e/kWh | L3: kgCO2e/MWh
B4: Pellets (wood - industrial) | C4: kg | D4: 1 | G4: 5.1 | H4: =1/0.65 -> 1.538461538 | I4: =G4/D4 -> 5.1 | J4: 0.01496 | K4: =J4/I4 -> 0.002933333333 | L4: =K4*1000 -> 2.933333333
B5: Natural Gas | C5: kWh | G5: 1 | J5: 0.195 | K5: 0.195 | L5: =K5*1000 -> 195
B6: Diesel | C6: litre | E6: 1 | G6: 10 | J6: 2.66 | K6: =J6/G6 -> 0.266 | L6: =K6*1000 -> 266
B7: Electricity | C7: kWh | G7: 1 | K7: 0.107 | L7: =K7*1000 -> 107
B8: Coal - default | C8: kg | D8: 1 | F8: =G8*3.6 -> 28.8 | G8: 8 | I8: 8 | J8: 1.93 | K8: =J8/I8 -> 0.24125 | L8: =K8*1000 -> 241.25
B9: Coal - Huntly peas | C9: kg | D9: 1 | F9: =G9*3.6 -> 28.8 | G9: 8 | I9: 8 | J9: 2.141946 | K9: =J9/I9 -> 0.26774325 | L9: =K9*1000 -> 267.74325
B10: LPG | C10: kg | D10: 45 | E10: 84 | F10: 2212 | G10: 614 | I10: =G10/D10 -> 13.64444444 | J10: 3.02 | K10: =J10/I10 -> 0.2213355049 | L10: =K10*1000 -> 221.3355049
B11: LPG | C11: kg | D11: 90 | E11: 167 | F11: 4423 | G11: 1229 | I11: =G11/D11 -> 13.65555556 | J11: 3.02 | K11: =J11/I11 -> 0.2211554109 | L11: =K11*1000 -> 221.1554109
B12: LPG | C12: kg | D12: 210 | E12: 3980 | F12: 10321 | G12: 2867 | I12: =G12/D12 -> 13.65238095 | J12: 3.02 | K12: 0.2212068364 | L12: 221.2068364
B13: LPG | C13: kg | D13: =G13/G10*45 -> 219.8697068 | G13: 3000 | I13: =G13/D13 -> 13.64444444 | J13: 3.02 | K13: =J13/I13 -> 0.2213355049 | L13: 221.3355049
B14: https://environment.govt.nz/publications/measuring-emissions-a-guide-for-organisations-2022-summary-of-emission-factors/
B16: Commercial average fuel costs May 2022
D17: $/unit | E17: $/kWh
B18: Natural Gas | E18: 0.11
B19: LPG per 45kg bottle | D19: 110 | E19: =D19/G10 -> 0.1791530945
B20: Diesel - litres | D20: 2 | E20: 0.2
B21: Electricity | E21: 0.21
B22: Coal - commercial sub-bituminous tonne | D22: 350 | E22: =D22/(G8*1000) -> 0.04375
B23: Pellets - tonnes | D23: 400 | E23: =D23/(G4*1000) -> 0.07843137255 | F23: Note - price per tonne will vary depending on delivery quantity, annual consumption and location for freight cost
B24: Average market rates for these fuels without published data
B25: Prices updated based on standard commercial contracts offered May 2022.

Sheet Tool Temp Rise = Energy
A1: Back to INDEX page
C4: Energy vs Temperature Rise Calculators
C6: Energy Required to Raise Water Temperature
C8: Water Vol (L) | D8: Temp Rise (oC) | E8: Energy Required
C9: 2200 | D9: 50 | E9: =C9*D9 -> 110000 | F9: kcal
E10: =E9/859.8 -> 127.9367295 | F10: kWh
E11: =E10*3412 -> 436520.121 | F11: Btu
E12: =E10*3.6 -> 460.5722261 | F12: MJ
C14: Water Vol (US gal) | D14: Temp Rise (oF) | E14: Energy Required
C15: 5000 | D15: 80 | E15: =(C15*3.785)*(D15*0.5555) -> 841027 | F15: kcal
E16: =E15/859.8 -> 978.1658525 | F16: kWh
E17: =E16*3412 -> 3337501.889 | F17: Btu
E18: =E16*3.6 -> 3521.397069 | F18: MJ
C21: Temperature Rise for Given Energy Input
C23: Energy Input (kWh) | D23: Water Vol (L) | E23: Temp Rise (oC)
C24: 95 | D24: 2200 | E24: =(C24*859.8)/D24 -> 37.12772727
C26: Energy Input (Btu) | D26: Water Vol (US gal) | E26: Temp Rise (oF)
C27: 40000 | D27: 80 | E27: =((C27*859.8/3412)/(D27*3.785))/0.5555 -> 59.92505972
C30: Volume of Water for Given Energy Input
C32: Energy Input (kWh) | D32: Temp Rise (oC) | E32: Volume (Litres)
C33: 13 | D33: 70 | E33: =(C33*859.8)/D33 -> 159.6771429
C35: Energy Input (Btu) | D35: Temp Rise (oF) | E35: Volume (US G)
C36: 40000 | D36: 80 | E36: =(C36/D36)/8.34 -> 59.95203837
C38: Time to Heat Up
C39: (Eg. Electrical Element, Boiler Output or Peak Solar Output)
C41: Energy Input (kW) | D41: Tank Volume (L)
C42: 3.6 | D42: 300
C43: Starting Temp (oC) | D43: Target Temp (oC) | E43: Time to Heat (h)
C44: 20 | D44: 60 | E44: =((D44-C44)*D42)/(C42*860) -> 3.875968992
C46: Energy Input (kW) | D46: Tank Volume (G)
C47: 3.6 | D47: 80
C48: Starting Temp (oF) | D48: Target Temp (oF) | E48: Time to Heat (h)
C49: 60 | D49: 140 | E49: =((D49-C49)*D47*8.34)/(C47*3412) -> 4.34544744
C51: Copyright © 2009 Apricus Solar Co., Ltd

Sheet Tool Cold~Hot
A1: Back to INDEX page
B3: Cold-Hot Water Ratio Calculator
B5: Target Temp Volume Know
B7: Target Temp Volume* | C7: 650
B8: Hot Water Temperature | C8: 60 | D8: oC/oF
B9: Cold Water Temperature | C9: 15 | D9: oC/oF
B10: Temperature Differential | C10: =C8-C9 -> 45 | D10: oC/oF
B11: Target Water Temp | C11: 40 | D11: oC/oF
B12: Cold Water Volume | C12: =C7*(C8-C11)/C10 -> 288.8888889 | D12: m1=m*(t2-t)/(t2-t1)
B13: Hot Water Volume | C13: =C7*(C11-C9)/C10 -> 361.1111111 | D13: m2=m*(t-t1)/(t2-t1)
B15: Hot Water Volume Know
B17: Hot Water Volume* | C17: 18376
B18: Hot Water Temperature | C18: 65 | D18: oC/oF
B19: Cold Water Temperature | C19: 12 | D19: oC/oF
B20: Temperature Differential | C20: =C18-C19 -> 53 | D20: oC/oF
B21: Target Water Temp | C21: 60 | D21: oC/oF
B22: Target Temp Volume | C22: =C17/(((C21-C19)/C20)) -> 20290.16667
B27: Copyright © 2009, Apricus Solar Co., Ltd
